Cogmind - Beta 17.1 @@@ ROGUE MODE // 2026.09.20 @ 22:58:51 Player: WayneKnight Result: Destroyed by 10-VM4(R) with Subdweller Machine Gun Performance ------------- Evolutions (0) 0 Regions Visited (3) 600 Robots Destroyed (23) 115 Value Destroyed (542) 542 Prototype IDs (2) 40 Alien Tech Used (0) 0 Bonus (110) 110 TOTAL SCORE: 1407 Bonus ------- Follower Combat Kills 110 Cogmind --------- Core Integrity 0/250 Matter 198/300 Energy 170/170 System Corruption 0% Temperature Cool (0) Movement Treading (160) Location -10/Subcaves Parts ------- > --- POWER (1) -------- Makeshift Power Source > --- PROPULSION (2) --- Improved Treads Improved Treads > --- UTILITY (2) ------ Large Storage Unit Signal Interpreter > --- WEAPON (2) ------- Subdweller Machine Gun Barrage Gun > --- INVENTORY (15) --- Ion Engine Light Nuclear Core Light Treads Light Treads Improved Treads Medium Storage Unit Sensor Array Scrap Shield Riot Gun Battle Rifle Subdweller Machine Gun Battle Cannon Grenade Launcher Flail Peak State ------------ > --- POWER ------------ Makeshift Power Source > --- PROPULSION ------- Improved Treads Improved Treads > --- UTILITY ---------- Large Storage Unit Propulsion Shielding > --- WEAPON ----------- Battle Rifle Barrage Gun > --- INVENTORY -------- Ion Engine Light Nuclear Core Light Treads Light Treads Improved Treads Medium Storage Unit Sensor Array Signal Interpreter Scrap Shield Riot Gun Subdweller Machine Gun Battle Cannon Grenade Launcher Flail [Rating: 17] Favorites ----------- Power Ion Engine Engine Ion Engine Propulsion Improved Treads Treads Improved Treads Leg Aluminum Leg Utility Large Storage Unit Device Structural Scanner Storage Large Storage Unit Processor Signal Interpreter Protection Propulsion Shielding Weapon Light EM Pulse Cannon Energy Gun EM Pulse Gun Energy Cannon Light EM Pulse Cannon Ballistic Gun Light Assault Rifle Launcher Grenade Launcher Impact Weapon Flail Build | -11 -10 -10 -10 ------- Run | Yrd Mat Min Sub Slots Evolved . | . . . . Power . | . . . . Propulsion . | . . . . Utility . | . . . . Weapon . | . . . . Parts Attached 22 | 2 7 4 9 Power 1 | . . . 1 Engine 1 | . . . 1 Core . | . . . . Reactor . | . . . . Propulsion 5 | 2 2 . 1 Treads 5 | 2 2 . 1 Leg . | . . . . Wheel . | . . . . Hover . | . . . . Flight . | . . . . Utility 6 | . 2 2 2 Device 3 | . 1 1 1 Storage 1 | . 1 . . Processor 1 | . . . 1 Hackware . | . . . . Protection 1 | . . 1 . Artifact . | . . . . Weapon 10 | . 3 2 5 Energy Gun . | . . . . Energy Cannon 3 | . 1 1 1 Ballistic Gun 5 | . 1 . 4 Ballistic Cannon . | . . . . Launcher 1 | . . 1 . Special Weapon . | . . . . Impact Weapon 1 | . 1 . . Slashing Weapon . | . . . . Piercing Weapon . | . . . . Special Melee Weapon . | . . . . Unidentified Prototypes . | . . . . Parts Lost 5 | . . 1 4 Power . | . . . . Propulsion 1 | . . . 1 Utility 1 | . . . 1 Weapon 3 | . . 1 2 Highest Loss Streak 2 | . . 1 2 To Critical Strikes . | . . . . Average Backups 14 | 6 14 14 13 Power 1 | 1 1 1 1 Propulsion 4 | 4 6 6 3 Utility 4 | . 3 4 4 Weapon 3 | 1 3 3 3 Tool/Special . | . . . . Unused Backups 17 | . 4 . 13 Power 3 | . . . 3 Propulsion 3 | . . . 3 Utility 5 | . 2 . 3 Weapon 6 | . 2 . 4 Tool/Special . | . . . . Average Slot Usage (%) 99 | . 97 99 99 Engine 14 | . 14 14 14 Treads 28 | . 28 28 28 Device 6 | . 11 9 2 Storage 14 | . 14 14 14 Processor 1 | . . . 3 Protection 5 | . . 4 8 Energy Gun 3 | . 12 . . Energy Cannon 11 | . 12 14 10 Ballistic Gun 12 | . 2 14 16 Peak Build Rating 17 | 6 12 12 17 Average Rating 12 | 6 11 11 13 On Entrance 9 | 6 6 12 12 Avg Prop Armor Cover (%) . | . . . . Naked Turns . | . . . . Heaviest Build 34 | 13 32 31 34 Greatest Support 46 | 40 46 46 46 Greatest Overweight (x) . | . . . . Average Overweight (x) . | . . . . Largest Inventory Capacity 15 | 8 15 15 15 Average Capacity 14 | 8 14 15 15 Most Carried 15 | 6 15 15 15 Average Carried 14 | 6 14 14 14 Final Capacity 15 | 8 15 15 15 Final Carried 15 | 6 15 15 15 Class Distribution -------------------- 100% | Mutant Dominant Class ---------------- Mutant | -10/Materials Mutant | -10/Mines Mutant | -10/Subcaves Resources | -11 -10 -10 -10 ----------- Run | Yrd Mat Min Sub Matter Collected 486 | 200 102 57 127 Remotely . | . . . . Salvage Created 707 | . 436 175 96 Parts 37 | . 21 13 3 Haulers Intercepted . | . . . . Recyclers Shooed 1 | . 1 . . Parts Field Recycled . | . . . . Retrieved Matter . | . . . . Parts Self-Destructed 9 | . . . 9 Prevented 1 | . . . 1 Parts Restored . | . . . . Kills | -11 -10 -10 -10 ------- Run | Yrd Mat Min Sub Combat Hostiles Destroyed 18 | . 11 4 3 Guns 3 | . 2 . 1 Cannons 12 | . 8 2 2 AOE 3 | . 1 2 . Classes Destroyed 6 | . 5 . 1 Recycler 1 | . 1 . . Operator 1 | . 1 . . Watcher 3 | . 3 . . Swarmer 8 | . 6 . 2 Grunt 9 | . 5 4 . Subdweller 1 | . . . 1 Best Kill Streak 6 | . 6 2 2 Combat Bots Only 5 | . 5 2 2 Max Kills in Single Turn 2 | . 2 2 1 Gunslinging . | . . . . Exploded 2 | . 1 2 . Melee . | . . . . Uniques/NPCs Destroyed . | . . . . Combat | -11 -10 -10 -10 -------- Run | Yrd Mat Min Sub Hostile Shots Fired 80 | . 35 14 31 Missed 20 | . 9 3 8 Hits 60 | . 26 11 23 Projectile 60 | . 26 11 23 AOE 2 | . . . 2 Actively Blocked 1 | . . . 1 Damage Taken 1234 | . 334 143 757 Core 266 | . 29 61 176 Absorbed by Shields . | . . . . Redirected to Shielding 50 | . . . 50 Core Remaining (%) 100 | 100 . . . Volleys Fired 52 | . 27 10 15 Largest 2 | . 2 2 2 Hottest 96 | . 96 76 86 Shots Fired 102 | . 54 19 29 Gun 57 | . 27 9 21 Cannon 44 | . 27 9 8 Launcher 1 | . . 1 . Special . | . . . . Kinetic 42 | . 12 9 21 Thermal . | . . . . Explosive 1 | . . 1 . Electromagnetic 59 | . 42 9 8 Robot Hit Streak 15 | . 6 5 15 Robot Miss Streak 5 | . 5 2 4 Penetration Max . | . . . . Secondary Targets . | . . . . Shots Hit Robots 65 | . 29 14 22 Core Hits 35 | . 18 10 7 Critical Kills . | . . . . Critical Parts Destroyed . | . . . . Critical Strikes 1 | . 1 . . Corrupt 1 | . 1 . . Melee Attacks 20 | . 1 . 19 Impact 20 | . 1 . 19 Slashing . | . . . . Piercing . | . . . . Sneak Attacks . | . . . . Combat Hostiles . | . . . . Follow-up Attacks . | . . . . Damage Inflicted 1570 | . 823 318 429 Guns 523 | . 169 44 310 Cannons 732 | . 427 186 119 Explosions 301 | . 224 77 . Melee . | . . . . Ramming 14 | . 3 11 . Kinetic 376 | . 22 44 310 Thermal 224 | . 224 . . Explosive 77 | . . 77 . Electromagnetic 879 | . 574 186 119 Impact . | . . . . Slashing . | . . . . Piercing . | . . . . Highest Corruption . | . . . . Average Corruption . | . . . . Corruption Purged . | . . . . Corruption Blocked . | . . . . Overload Shots . | . . . . Overflow Damage 6 | . 4 . 2 Projectiles 6 | . 4 . 2 Explosions . | . . . . Melee . | . . . . Knockbacks . | . . . . Impact . | . . . . Kinetic . | . . . . Secondary . | . . . . Self-Inflicted Damage 61 | . 61 . . Shots 2 | . 2 . . Rammed 2 | . 1 1 . Targets Rammed 2 | . 1 1 . Kicked . | . . . . Crushed . | . . . . Highest Temperature 264 | . 264 193 8 Average Temperature 81 | . 87 76 5 Received Heat Transfer 165 | . 24 81 60 Siege Activations . | . . . . Martial Activations . | . . . . Shielding Activations . | . . . . Robots Disrupted . | . . . . Combat Hostiles . | . . . . Robots Corrupted . | . . . . Combat Hostiles . | . . . . Parts Fried 7 | . 7 . . Impact Corruptions . | . . . . Robots Melted . | . . . . Combat Hostiles . | . . . . Parts Melted . | . . . . Heat Transferred 250 | . 250 . . Parts Sabotaged . | . . . . Parts Stolen . | . . . . Parts Stripped . | . . . . Power Chain Reactions 4 | . 4 . . Alert | -11 -10 -10 -10 ------- Run | Yrd Mat Min Sub Maximum Alert Level . | . . . . Low Security (%) 100 | 100 100 100 . Level 1 . | . . . . Level 2 . | . . . . Level 3 . | . . . . Level 4 . | . . . . Level 5 . | . . . . High Security . | . . . . Max Security . | . . . . Peak Influence 177 | . 177 89 . Initial 59 | . . 59 . Average 31 | . 41 22 . Influence Increases 768 | . 391 202 175 Destroy 0b10 Robot/C 420 | . 220 160 40 Destroy 0b10 Robot/NC 25 | . 25 . . Destroy Leader 76 | . 46 30 . Allied During Kill 5 | . . 5 . Successful Hack 48 | . 48 . . Disable Machine 30 | . 30 . . Destroy Structure 29 | . 22 7 . Lose Combat Pursuer 135 | . . . 135 Influence Decreases 768 | . 238 302 228 Entered New Map 123 | . . 94 29 Time Decay 635 | . 238 198 199 Lost Part 10 | . . 10 . Squads Dispatched 3 | . 2 1 . Investigation 1 | . 1 . . Extermination . | . . . . Reinforcement 1 | . 1 . . Assault 1 | . . 1 . Garrison . | . . . . Intercept . | . . . . Searches Triggered . | . . . . Construction Impeded . | . . . . Haulers Reinforced . | . . . . Active Scanning Responses . | . . . . Cargo Convoy Interrupts . | . . . . Stealth | -11 -10 -10 -10 --------- Run | Yrd Mat Min Sub Distress Signals . | . . . . Communications Jammed . | . . . . Distress Signals . | . . . . Times Spotted 47 | . 14 8 25 Peak Tracking Total 7 | . 3 4 7 Tactical Retreats 2 | . . . 2 Traps | -11 -10 -10 -10 ------- Run | Yrd Mat Min Sub Traps Triggered 5 | . 2 . 3 Indirectly . | . . . . Trap Hack Attempts . | . . . . Triggered . | . . . . Disarmed . | . . . . Reprogrammed . | . . . . Reused . | . . . . Traps Extracted . | . . . . Installed . | . . . . Triggered . | . . . . Machines | -11 -10 -10 -10 ---------- Run | Yrd Mat Min Sub Machines Disabled 2 | . 2 . . Max in Single Turn 1 | . 1 . . Machines Repaired . | . . . . Machines Dismantled . | . . . . Machines Sabotaged . | . . . . Overloaded Fab Kills . | . . . . Hacking | -11 -10 -10 -10 --------- Run | Yrd Mat Min Sub Machines Accessed 7 | . 7 . . Terminals 7 | . 7 . . Fabricators . | . . . . Repair Stations . | . . . . Recycling Units . | . . . . Scanalyzers . | . . . . Garrison Access . | . . . . Total Hacks 25 | . 25 . . Successful 11 | . 11 . . Failed 13 | . 13 . . Catastrophic 3 | . 3 . . Database Lockouts 1 | . 1 . . Manual 17 | . 17 . . Terminals 25 | . 25 . . Fabricators . | . . . . Repair Stations . | . . . . Recycling Units . | . . . . Scanalyzers . | . . . . Garrison Access . | . . . . Terminal Hacks 6 | . 6 . . Robot Analysis 2 | . 2 . . Prototype ID Bank 1 | . 1 . . Terminal Index 1 | . 1 . . Locate Traps 1 | . 1 . . Hauler Manifests 1 | . 1 . . Fabricator Hacks . | . . . . Repair Station Hacks . | . . . . Recycling Unit Hacks . | . . . . Scanalyzer . | . . . . Garrison Access Hacks . | . . . . Unauthorized Hacks 5 | . 5 . . Terminals 5 | . 5 . . Track 2 | . 2 . . Botnet 3 | . 3 . . Fabricators . | . . . . Repair Stations . | . . . . Recycling Units . | . . . . Scanalyzers . | . . . . Garrison Access . | . . . . Data Cores Recovered . | . . . . Used . | . . . . Hacking Detections 7 | . 7 . . Full Trace Events . | . . . . Feedback Events . | . . . . Feedback Blocked . | . . . . Robot Schematics Acquired . | . . . . Robots Built . | . . . . Authchips . | . . . . Time . | . . . . Total Robot Build Rating . | . . . . Part Schematics Acquired . | . . . . Parts Built . | . . . . Authchips . | . . . . Time . | . . . . Total Part Build Rating . | . . . . Part Studies Acquired . | . . . . Parts Repaired . | . . . . Time . | . . . . Parts Recycled . | . . . . Recycled Matter . | . . . . Retrieved Matter . | . . . . Retrieved Components . | . . . . Parts Scanalyzed . | . . . . Part Schematics Acquired . | . . . . Parts Damaged . | . . . . Bothacking | -11 -10 -10 -10 ------------ Run | Yrd Mat Min Sub Used RIF Installer . | . . . . Robots Hacked . | . . . . Non-combat . | . . . . Combat . | . . . . Robot Hacks Applied . | . . . . Relay Couplers Released . | . . . . Fabnet Peak Effective % . | . . . . Robots Rewired . | . . . . Allies Hacked . | . . . . Hacks Repelled . | . . . . Allies | -11 -10 -10 -10 -------- Run | Yrd Mat Min Sub Total Allies 1 | . . 1 . Largest Group 1 | . . 1 1 Highest-Rated Group 31 | . . 31 31 Highest-Rated Ally 31 | . . 31 31 Total Orders . | . . . . Ally Attacks 7 | . . 7 . Total Damage 122 | . . 122 . Kills 4 | . . 4 . Allies Corrupted . | . . . . Allies Melted . | . . . . Intel | -11 -10 -10 -10 ------- Run | Yrd Mat Min Sub Active Infowar (turns) 1810 | . 825 620 365 Optics 365 | . . . 365 Structural 1445 | . 825 620 . Robot Analysis Total 2 | . 2 . . Derelict Logs Recovered 4 | . . 2 2 Drone Launches . | . . . . Drone Recoveries . | . . . . Exploration | -11 -10 -10 -10 ------------- Run | Yrd Mat Min Sub Turns Passed 4027 | 12 1013 970 2032 Spaces Moved 2158 | 8 487 520 1143 Core . | . . . . Treads 2152 | 2 487 520 1143 Legs 6 | 6 . . . Wheels . | . . . . Hover . | . . . . Flight . | . . . . Fastest Speed 120 | 120 160 160 160 Average Speed 159 | 130 160 160 160 Slowest Speed 160 | 160 160 160 160 Overloaded Moves . | . . . . Propulsion Burnouts . | . . . . Robots Hopped . | . . . . Potential Cave-ins . | . . . . Cave-ins Triggered . | . . . . Exploration Rate (%) 60 | 3 93 97 48 Regions Visited 3 Branch Regions 2 Pre-discovered Areas 1 | . . 1 . Known Exits Taken . | . . . . Unknown Exits Taken 3 | 1 1 1 . Scrap Searched 4 | . . 1 3 Spaces Dug . | . . . . Terrain Destroyed 27 | . 20 7 . Melee . | . . . . Projectile . | . . . . AOE 27 | . 20 7 . Terrain Rammed . | . . . . Walls Destroyed . | . . . . Machines Disabled . | . . . . Actions | -11 -10 -10 -10 --------- Run | Yrd Mat Min Sub Total 2602 | 9 667 639 1287 Wait 303 | . 127 103 73 Move 2155 | 7 486 519 1143 Hop . | . . . . Pick Up 20 | . 11 1 8 Fast Attach 6 | . 3 1 2 Attach 5 | . . 1 4 Detach 3 | . 1 . 2 Swap 20 | 2 4 2 12 Drop 16 | . 6 1 9 Fire 52 | . 27 10 15 Melee 20 | . 1 . 19 Ram . | . . . . Kick . | . . . . Crush 2 | . 1 1 . Escape Stasis . | . . . . Rewire . | . . . . Trap . | . . . . Miscellaneous . | . . . . Route ------- -11/Scrapyard -10/Materials (discovered 6 exits: [*Mat x3] / [*Min x2] / [Sub]) -10/Mines (discovered 4 exits: [*Mat x2] / [*Exi] / [*Sub]) -10/Subcaves (discovered 1 exit: [*Rec]) History --------- Turn | Location | Event 1 | -11/Scrapyard | Discovered new exit (range 3) 13 | -11/Scrapyard | Entered Materials 308 | -10/Materials | Discovered new exit (range 10) 317 | -10/Materials | Build established: Mutant 327 | -10/Materials | Discovered new exit (range 11) 562 | -10/Materials | Discovered new exit (range 10) 594 | -10/Materials | Central database locked down 647 | -10/Materials | Discovered new exit (range 16) 679 | -10/Materials | Discovered new exit (range 12) 913 | -10/Materials | Derelicts attacked the area 1013 | -10/Materials | Discovered new exit (range 7) 1026 | -10/Materials | Entered Mines 1035 | -10/Mines | Learned location of 1 exit from Materials 1057 | -10/Mines | Met a Derelict bent on vengeance 1263 | -10/Mines | Discovered new exit (range 8) 1431 | -10/Mines | Discovered new exit (range 13) 1771 | -10/Mines | Met a Derelict testing a Signal Generator 1912 | -10/Mines | Discovered new exit (range 7) 1973 | -10/Mines | Discovered new exit (range 7) 1996 | -10/Mines | Entered Subcaves 1996 | -10/Subcaves | Accompanied by 1 ally 1997 | -10/Subcaves | Approached by a straggling Scientist 2047 | -10/Subcaves | A swath of the cavern ceiling suddenly collapsed 2068 | -10/Subcaves | Ambushed by swarm of Subdwellers 2074 | -10/Subcaves | Ambushed by Subdwellers from Twisted Machinery 2074 | -10/Subcaves | Ambushed by Subdwellers from Twisted Machinery 2275 | -10/Subcaves | Learned Materials emergency access door positions 2306 | -10/Subcaves | Learned Materials garrison access intel 2653 | -10/Subcaves | Discovered new exit (range 14) 3136 | -10/Subcaves | A swath of the cavern ceiling suddenly collapsed 3677 | -10/Subcaves | Core integrity fell below 50% 3758 | -10/Subcaves | Shifting Twisted Machinery released Battle Rifle 3848 | -10/Subcaves | Shifting Twisted Machinery released Scrap Shield 4015 | -10/Subcaves | Core integrity fell below 20% 4028 | -10/Subcaves | Destroyed by 10-VM4(R) with Subdweller Machine Gun Last Messages --------------- 03643_ Critical hit (Impale). 03676_ 45-CN4(g) triggered Shrapnel Trap. 03676_ An expanding cloud of shrapnel blasts out in all directions. 03676_ 45-CN4(g) destroyed. Battle Rifle falls loose from the Twisted Machinery. 03764_ JA-NEK(u) tweaks Twisted Machinery. 03785_ Acquired Sub. Machine Gun. 03793_ JA-NEK(u) tweaks Twisted Machinery. 03813_ Dropped Battle Rifle. 03813_ Acquired Battle Rifle. Scrap Shield falls loose from the Twisted Machinery. 03948_ JA-NEK(u) builds Twisted Machinery. 03967_ JA-NEK(u) tweaks Twisted Machinery. 03993_ Subatomizers dissect the Disposable Heat Sink. 04019_ J5-B8F(R) affixes Scrap Shield Fragment to Scrap Shield. Map ----- +----------------------------------------------------+ | ???????????????# ##???####???????????????????????? | | ???????????????# #??## #??????????????????####?? | | ???????????????# #### #####?????????????## #?? | | ??????????????## ##"" ##" ##????????????# #?## | | ??????????????#" ## " ##??????????## #### | | ??????????????# " ""## " #?????????## ### | | ??????????????#" "" "! #?????????## # | | ?????????????## ## ##????????## | | ?????????????# ## ################???# [ | | ?????????????## #???????# # # ###### "" % | | ?????????????# #??????## #?##"" | | ?????????????## ######?# " #?####"# | | ??????????????# ### ###""" ###""""## # | | ??????????????#####"" " #???# """"" | | ?????????????????## """"""""" #??## "" " # | | ????????????????## " ##### "" ###### | | ????????????????# ##?# "" ###????? | | ????????????????#" #??# "" ##?????? | | ????????????????#""" ### #??### ""## "#?????? | | ????????????????# """ #### "##???##""## ##?????? | | ????????????????# " ### """####?## ##?????? | | ????????????????# ##& ""#"# #?### ##????? | | ????????????????##### ####] """ "#??## "##???? | | ????????????????????###??# #"" "####"" " #???? | | ????????????????????????## "# ""# # " "##???? | | ????????????????????????#@ #### = #????? | | ????????????????????????# ##?# # ##????? | | ??????????????????####### ### # # ##?????? | | ??????????????##### #;;RR ; ###### #??????? | | ??????????????# ! * ##### ##??????? | | ??????#####???# [[= # # ##??????? | | ??????# ###?# #??????? | | ??????### ""### ## ## ##??????? | | ????????#" "## #####; ! ######### #???????? | | ????????#" ###" [##???#; ;#??????## #???????? | | ????????## # " #????#; ;##?????# #???????? | | ?????????# ###??# ##????## #???????? | | ?????????# ###;#; ;; ##??## ##??????? | | ?????????# #" ### #### *#??# #??????? | | ????????### ## ## ### #??## #??????? | | ????????#" "# ## #?# #???# #??????? | | ????????#%] "## ## #? #???# #??????? | | ?????# ##%[ "## !&[ ### #??## #??????? | | ?????# "" *"### ##?######??# ##??????? | | ?????#"""*"### = ##?####????## ##???????? | | ?????#######?### ## ### ##### # #???????? | | ???????????????## ### ## #???????? | | ????????????????# ### ##??????## | | ????????????????# ## ! ## ##??????## | | ???????????????# ### ###????????# | +----------------------------------------------------+ Best States ------------- Heat Dissipation 25 Energy Generation 15 Energy Capacity 250 Matter Stores 300 Matter Capacity 300 Sight Range 21 Terrain Scan Density 10 Propulsion Shielding 33 Evasion (%) 50 Recoil Reduction 2 Item Schematics ----------------- None Robot Schematics ------------------ None Fabricated ------------ Nothing Repaired ---------- Nothing Studied --------- None Alien Tech Used ----------------- None Achievements -------------- That Tickles Challenges ------------ None Game ------ Seed ScatterLinearScrapsphere Manual? 0 Play Time 00:28:54 Cumulative 71.1 hours Start 2026.09.20 @ 22:23:37 End 2026.09.20 @ 22:58:51 Sessions 1 Manual Loads 0 Difficulty Rogue Special Mode None Game No. 67 Rogue 67 Adventurer 0 Explorer 0 Win Type - Total 1 Types 0/0/1/0/0/0/0/0/0/0 Lore% 36 Gallery% 33 Achievement% 31 Wizard Run 0 Options --------- Layout 1 ASCII 1 Keyboard 1 Movement Arrows Keybinds 0 Fullscreen 2 Font 48/Tamsyn++ Map View 50x35 Zoom Use 0% Tactical HUD 1 Map Filters NONE Filters NONE Steam 1 RUN: 387bde74-5fa6-4fb7-a953-1e85b4a2c0ec